fUSD/lending_fUSD_20251118
["ID","MTS","AMOUNT","RATE_DAILY","PERIOD"]
[394346079,1763478641587,-500.0,0.00038616,30]
[394346080,1763478641597,-500.0,0.0003863,3]
[394346081,1763478641606,-500.0,0.0003863,3]
[394346082,1763478641615,-503.81001983,0.0003863,3]
[394346083,1763478641624,-500.0,0.0003863,3]
[394346084,1763478641634,-500.0,0.0003863,3]
[394346085,1763478641643,-500.0,0.0003863,3]
[394346086,1763478641652,-500.0,0.0003863,3]
[394346087,1763478641662,-349.5,0.0003863,3]
[394346088,1763478641671,-500.0,0.0003863,3]
[394346089,1763478641682,-2088.19,0.0003863,2]
[394346090,1763478641691,-500.0,0.0003863,2]
[394346091,1763478641701,-300.0,0.0003863,2]
[394346092,1763478641710,-500.0,0.0003863,2]
[394346093,1763478641720,-300.0,0.0003863,2]
[394346094,1763478641733,-500.0,0.0003863,2]
[394346095,1763478641742,-815.13,0.0003863,3]
[394346096,1763478641752,-500.0,0.0003863,3]
[394346097,1763478641762,-2018.65,0.0003863,3]
[394346098,1763478641772,-500.0,0.0003863,3]
[394346099,1763478641781,-500.0,0.0003863,3]
[394346100,1763478641791,-4768.85,0.0003863,3]
[394346101,1763478641801,-2089.25,0.0003863,3]
[394346102,1763478641810,-573.28,0.0003863,3]
[394346103,1763478641820,-1327.44,0.0003863,3]
[394346104,1763478641829,-1774.84,0.0003863,3]
[394346105,1763478641839,-500.0,0.0003863,3]
[394346106,1763478641849,-1611.61,0.0003863,3]
[394346107,1763478641859,-1166.9,0.0003863,3]
[394346108,1763478641869,-813.56,0.0003863,3]
[394346109,1763478641878,-1496.17,0.0003863,3]
[394346110,1763478641888,-500.0,0.0003863,2]
[394346111,1763478642037,-500.0,0.0003863,3]
[394346112,1763478642051,-500.0,0.0003863,2]
[394346113,1763478642061,-500.0,0.0003863,3]
[394346114,1763478642071,-500.0,0.0003863,3]
[394346115,1763478642081,-625.3051042,0.0003863,2]
[394346116,1763478642093,-1955.72,0.0003863,3]
[394346117,1763478642103,-500.0,0.0003863,3]
[394346118,1763478642113,-500.0,0.0003863,2]
[394346119,1763478642122,-258.73394319,0.00038741,2]
[394346120,1763478642134,-500.0,0.00038824,30]
[394346121,1763478642143,-167.72909827,0.00038837,15]
[394346122,1763478642153,-4026.3842,0.00038888,30]
[394346123,1763478642162,-155.98,0.00038898,120]
[394346124,1763478642172,-1200.0,0.000389,14]
[394346125,1763478642182,-500.0,0.00038904,3]
[394346126,1763478642193,-500.0,0.00038904,3]
[394346127,1763478642203,-500.0,0.00038904,3]
[394346128,1763478642213,-500.0,0.00038904,3]
[394346129,1763478642228,-500.0,0.00038904,3]
[394346130,1763478642238,-500.0,0.00038904,3]
[394346131,1763478642248,-2088.19,0.00038904,2]
[394346132,1763478642258,-500.0,0.00038904,2]
[394346133,1763478642267,-300.0,0.00038904,2]
[394346134,1763478642278,-500.0,0.00038904,2]
[394346135,1763478642287,-300.0,0.00038904,2]
[394346136,1763478642297,-500.0,0.00038904,2]
[394346137,1763478642306,-815.13,0.00038904,3]
[394346138,1763478642317,-500.0,0.00038904,3]
[394346139,1763478642326,-2018.65,0.00038904,3]
[394346140,1763478642336,-500.0,0.00038904,3]
[394346141,1763478642346,-500.0,0.00038904,3]
[394346142,1763478642356,-4768.85,0.00038904,3]
[394346143,1763478642366,-2089.25,0.00038904,3]
[394346144,1763478642377,-573.28,0.00038904,3]
[394346145,1763478642387,-1327.44,0.00038904,3]
[394346146,1763478642397,-1774.84,0.00038904,3]
[394346147,1763478642407,-500.0,0.00038904,3]
[394346148,1763478642416,-1611.61,0.00038904,3]
[394346149,1763478642425,-1166.9,0.00038904,3]
[394346150,1763478642435,-813.56,0.00038904,3]
[394346151,1763478642444,-1496.17,0.00038904,3]
[394346152,1763478642453,-500.0,0.00038904,2]
[394346153,1763478642463,-500.0,0.00038904,3]
[394346155,1763478642476,-500.0,0.00038904,2]
[394346157,1763478642486,-316.5078923,0.00038904,3]
[394346159,1763478642496,-500.0,0.00038904,3]
[394346160,1763478642506,-1955.72,0.00038904,3]
[394346161,1763478642515,-500.0,0.00038904,3]
[394346162,1763478642525,-500.0,0.00038904,2]
[394346163,1763478642534,-500.0,0.00038956,30]
[394346164,1763478642543,-155.98,0.00038998,120]
[394346165,1763478642552,-1033.0,0.00039,30]
[394346166,1763478642561,-500.0,0.0003903,30]
[394346167,1763478642570,-155.98,0.00039098,120]
[394346168,1763478642579,-500.0,0.00039107,30]
[394346169,1763478642588,-500.0,0.00039139,30]
[394346170,1763478642598,-500.0,0.00039178,3]
[394346171,1763478642608,-500.0,0.00039178,3]
[394346172,1763478642617,-190.75379603,0.00039178,3]
[394346173,1763478642627,-500.0,0.00039178,3]
[394346174,1763478642637,-500.0,0.00039178,3]
[394346175,1763478642647,-500.0,0.00039178,3]
[394346176,1763478642657,-2088.19,0.00039178,2]
[394346177,1763478642667,-500.0,0.00039178,2]
[394346178,1763478642677,-300.0,0.00039178,2]
[394346179,1763478642686,-500.0,0.00039178,2]
[394346180,1763478642696,-300.0,0.00039178,2]
[394346181,1763478642706,-500.0,0.00039178,2]
[394346182,1763478642716,-815.13,0.00039178,3]
[394346183,1763478642730,-500.0,0.00039178,3]
[394346184,1763478642740,-2018.65,0.00039178,3]
[394346185,1763478642750,-500.0,0.00039178,3]
[394346186,1763478642760,-500.0,0.00039178,3]
[394346187,1763478642770,-4768.85,0.00039178,3]
[394346188,1763478642781,-2089.25,0.00039178,3]
[394346189,1763478642791,-573.28,0.00039178,3]
[394346190,1763478642802,-1327.44,0.00039178,3]
[394346191,1763478642812,-1774.84,0.00039178,3]
[394346192,1763478642822,-500.0,0.00039178,3]
[394346193,1763478642832,-1611.61,0.00039178,3]
[394346194,1763478642842,-1166.9,0.00039178,3]
[394346195,1763478642851,-813.56,0.00039178,3]
[394346196,1763478642862,-1496.17,0.00039178,3]
[394346197,1763478642872,-500.0,0.00039178,2]
[394346198,1763478642881,-500.0,0.00039178,3]
[394346199,1763478642891,-500.0,0.00039178,2]
[394346200,1763478642902,-500.0,0.00039178,3]
[394346201,1763478642911,-1955.72,0.00039178,3]
[394346202,1763478642921,-500.0,0.00039178,3]
[394346203,1763478642930,-375.07952846,0.00039178,2]
[394346204,1763478642940,-205.79,0.00039179,60]
[394346205,1763478642949,-155.98,0.00039198,120]
[394346206,1763478642959,-87126.0479,0.0003922,30]
[394346207,1763478642969,-2000.0,0.00039248,120]
[394346208,1763478642982,-155.98,0.00039298,120]
[394346209,1763478642992,-500.0,0.00039318,30]
[394346210,1763478643001,-822.94323152,0.00039362,30]
[394346211,1763478643012,-155.98,0.00039398,120]
[394346212,1763478643022,-72000.0,0.000394,120]
[394346213,1763478643032,-500.0,0.00039411,30]
[394346214,1763478643042,-500.0,0.00039452,3]
[394346215,1763478643053,-500.0,0.00039452,3]
[394346216,1763478643067,-500.0,0.00039452,3]
[394346217,1763478643077,-500.0,0.00039452,3]
[394346218,1763478643087,-500.0,0.00039452,3]
[394346219,1763478643097,-2088.19,0.00039452,2]
[394346220,1763478643107,-500.0,0.00039452,2]
[394346221,1763478643116,-300.0,0.00039452,2]
[394346222,1763478643126,-500.0,0.00039452,2]
[394346223,1763478643136,-300.0,0.00039452,2]
[394346224,1763478643146,-500.0,0.00039452,2]
[394346225,1763478643156,-815.13,0.00039452,3]
[394346226,1763478643166,-500.0,0.00039452,3]
[394346227,1763478643175,-2018.65,0.00039452,3]
[394346228,1763478643185,-500.0,0.00039452,3]
[394346229,1763478643194,-500.0,0.00039452,3]
[394346230,1763478643203,-4768.85,0.00039452,3]
[394346231,1763478643212,-2089.25,0.00039452,3]
[394346232,1763478643221,-573.28,0.00039452,3]
[394346233,1763478643233,-1327.44,0.00039452,3]
[394346234,1763478643243,-1774.84,0.00039452,3]
[394346235,1763478643253,-500.0,0.00039452,3]
[394346236,1763478643262,-1611.61,0.00039452,3]
[394346237,1763478643272,-1166.9,0.00039452,3]
[394346238,1763478643282,-813.56,0.00039452,3]
[394346239,1763478643291,-1496.17,0.00039452,3]
[394346240,1763478643301,-500.0,0.00039452,2]
[394346241,1763478643311,-500.0,0.00039452,3]
[394346242,1763478643320,-500.0,0.00039452,2]
[394346243,1763478643330,-500.0,0.00039452,3]
[394346244,1763478643340,-1955.72,0.00039452,3]
[394346245,1763478643349,-500.0,0.00039452,3]
[394346246,1763478643359,-155.98,0.00039498,120]
[394346247,1763478643368,-500.0,0.00039519,30]
[394346248,1763478643378,-500.0,0.00039548,30]
[394346249,1763478643388,-500.0,0.00039571,30]
[394346250,1763478643397,-155.98,0.00039598,120]
[394346251,1763478643407,-502.76553677,0.00039616,30]
[394346252,1763478643417,-155.98,0.00039698,120]
[394346253,1763478643426,-550.38,0.00039699,2]
[394346254,1763478643435,-500.0,0.00039707,30]
[394346255,1763478643444,-500.0,0.00039717,30]
[394346256,1763478643453,-500.0,0.00039726,3]
[394346257,1763478643464,-500.0,0.00039726,3]
[394346258,1763478643475,-500.0,0.00039726,3]
[394346259,1763478643484,-500.0,0.00039726,3]
[394346260,1763478643494,-500.0,0.00039726,3]
[394346261,1763478643503,-2088.19,0.00039726,2]
[394346262,1763478643516,-500.0,0.00039726,2]
[394346263,1763478643526,-300.0,0.00039726,2]
[394346264,1763478643535,-500.0,0.00039726,2]
[394346265,1763478643544,-300.0,0.00039726,2]
[394346266,1763478643554,-508.14477178,0.00039726,2]
[394346267,1763478643563,-815.13,0.00039726,3]
[394346268,1763478643573,-500.0,0.00039726,3]
[394346269,1763478643582,-2018.65,0.00039726,3]
[394346270,1763478643592,-500.0,0.00039726,3]
[394346271,1763478643601,-500.0,0.00039726,3]
[394346272,1763478643612,-4768.85,0.00039726,3]
[394346273,1763478643621,-2089.25,0.00039726,3]
[394346274,1763478643631,-573.28,0.00039726,3]
[394346276,1763478643640,-1327.44,0.00039726,3]
[394346278,1763478643650,-1774.84,0.00039726,3]
[394346280,1763478643660,-500.0,0.00039726,3]
[394346281,1763478643669,-1611.61,0.00039726,3]
[394346282,1763478643678,-1166.9,0.00039726,3]
[394346283,1763478643687,-813.56,0.00039726,3]
[394346284,1763478643697,-1496.17,0.00039726,3]
[394346285,1763478643711,-500.0,0.00039726,2]
[394346286,1763478643720,-500.0,0.00039726,2]
[394346287,1763478643734,-501.1856,0.00039726,3]
[394346288,1763478643743,-1955.72,0.00039726,3]
[394346289,1763478643753,-500.0,0.00039726,3]
[394346290,1763478643763,-1401.2,0.00039753,2]
[394346291,1763478643773,-502.76553677,0.00039781,30]
[394346292,1763478643782,-155.98,0.00039798,120]
[394346293,1763478643792,-1500.0,0.000398,14]
[394346294,1763478643802,-500.0,0.00039896,30]
[394346295,1763478643813,-155.98,0.00039898,120]
[394346296,1763478643823,-300.0,0.000399,14]
[394346297,1763478643833,-155.41510279,0.000399,120]
[394346298,1763478643843,-155.41510279,0.000399,120]
[394346299,1763478643853,-502.76553677,0.00039945,30]
[394346300,1763478643863,-155.98,0.00039998,120]
[394346301,1763478643872,-50000.0,0.0004,40]
[394346302,1763478643882,-12499.99,0.0004,120]
[394346303,1763478643891,-12500.0,0.0004,120]
[394346304,1763478643901,-500.0,0.0004,3]
[394346305,1763478643915,-1033.0,0.0004,30]
[394346306,1763478643924,-479.30025826,0.0004,120]
[394346307,1763478643934,-500.0,0.0004,3]
[394346308,1763478643944,-500.0,0.0004,2]
[394346309,1763478643953,-500.0,0.0004,3]
[394346310,1763478643963,-500.0,0.0004,3]
[394346311,1763478643977,-500.0,0.0004,3]
[394346312,1763478643987,-2088.19,0.0004,2]
[394346313,1763478643997,-500.0,0.0004,2]
[394346314,1763478644008,-1008.0,0.0004,120]
[394346315,1763478644018,-300.0,0.0004,2]
[394346316,1763478644028,-500.0,0.0004,2]
[394346317,1763478644038,-300.0,0.0004,2]
[394346318,1763478644050,-815.13,0.0004,3]
[394346319,1763478644063,-500.0,0.0004,3]
[394346320,1763478644072,-2018.65,0.0004,3]
[394346321,1763478644081,-500.0,0.0004,3]
[394346322,1763478644091,-500.0,0.0004,3]
[394346323,1763478644102,-4768.85,0.0004,3]
[394346324,1763478644111,-2089.25,0.0004,3]
[394346325,1763478644123,-573.28,0.0004,3]
[394346326,1763478644134,-1327.44,0.0004,3]
[394346327,1763478644143,-1774.84,0.0004,3]
[394346328,1763478644152,-500.0,0.0004,3]
[394346329,1763478644161,-1611.61,0.0004,3]
[394346330,1763478644170,-1166.9,0.0004,3]
[394346331,1763478644179,-813.56,0.0004,3]
[394346332,1763478644188,-1496.17,0.0004,3]
[394346333,1763478644197,-500.0,0.0004,2]
[394346334,1763478644206,-500.0,0.0004,2]
[394346335,1763478644215,-575.65355783,0.0004,120]
[394346336,1763478644227,-1955.72,0.0004,3]
[394346337,1763478644236,-500.0,0.0004,3]
[394346338,1763478644245,-550.38,0.00040027,2]
[394346339,1763478644255,-500.0,0.00040051,30]
[394346340,1763478644264,-502.76553677,0.00040082,30]
[394346341,1763478644275,-156.03894879,0.00040098,120]
[394346342,1763478644284,-500.0,0.00040127,30]
[394346343,1763478644294,-611.34372156,0.00040201,2]
[394346344,1763478644304,-502.76553677,0.00040247,30]
[394346345,1763478644314,-12500.0,0.0004025,120]
[394346346,1763478644323,-1725.162,0.00040269,57]
[394346347,1763478644333,-689.61,0.00040269,30]
[394346348,1763478644342,-500.0,0.00040273,3]
[394346349,1763478644352,-500.0,0.00040273,3]
[394346350,1763478644361,-500.0,0.00040273,3]
[394346351,1763478644371,-500.0,0.00040273,3]
[394346352,1763478644380,-500.0,0.00040273,3]
[394346353,1763478644390,-2088.19,0.00040273,2]
[394346354,1763478644399,-500.0,0.00040273,2]
[394346355,1763478644409,-300.0,0.00040273,2]
[394346356,1763478644418,-500.0,0.00040273,2]
[394346357,1763478644428,-300.0,0.00040273,2]
[394346358,1763478644438,-815.13,0.00040273,3]
[394346359,1763478644447,-500.0,0.00040273,3]
[394346360,1763478644457,-2018.65,0.00040273,3]
[394346361,1763478644466,-500.0,0.00040273,3]
[394346362,1763478644532,-500.0,0.00040273,3]
[394346363,1763478644544,-4768.85,0.00040273,3]
[394346364,1763478644554,-2089.25,0.00040273,3]
[394346365,1763478644565,-573.28,0.00040273,3]
[394346366,1763478644575,-1327.44,0.00040273,3]
[394346367,1763478644586,-1774.84,0.00040273,3]
[394346368,1763478644596,-500.0,0.00040273,3]
[394346369,1763478644607,-1611.61,0.00040273,3]
[394346370,1763478644618,-1166.9,0.00040273,3]
[394346371,1763478644628,-813.56,0.00040273,3]
[394346372,1763478644638,-1496.17,0.00040273,3]
[394346373,1763478644647,-500.0,0.00040273,2]
[394346374,1763478644657,-500.0,0.00040273,2]
[394346375,1763478644666,-1955.72,0.00040273,3]
[394346376,1763478644676,-500.0,0.00040273,3]
[394346377,1763478644686,-150.0,0.00040274,7]
[394346378,1763478644696,-150.00000001,0.00040274,7]
[394346379,1763478644706,-213.37435148,0.00040274,7]
[394346380,1763478644715,-150.0,0.00040274,7]
[394346381,1763478644729,-150.0,0.00040274,7]
[394346382,1763478644739,-150.0,0.00040274,7]
[394346383,1763478644748,-500.0,0.00040297,30]
[394346384,1763478644758,-666.0,0.000403,30]
[394346385,1763478644768,-383606.4940797,0.00040301,120]
[394346386,1763478645031,-699.70301262,0.00019364,2]
[394346387,1763478645041,-155.41510279,0.00040201,120]
[394346388,1763478645056,-1019.88188459,0.00040301,120]
[394346389,1763478645067,-733.28492104,0.00040301,120]
[394346390,1763478645079,-325.37099,0.00040301,120]
[394346391,1763478645091,-459.605,0.00040301,120]
[394346392,1763478645102,-2769461.61590482,0.00040301,120]
[394346393,1763478645183,-1910.27441113,0.0002229,2]
[394346394,1763478645196,-5615.01615377,0.0002229,2]
[394346395,1763478645205,-5546.46810791,0.0002229,2]
[394346396,1763478645213,-1683.926,0.00026858,2]
[394346397,1763478645221,-210.32648238,0.00040201,2]
[394346398,1763478645233,-32860.12225596,0.00040301,120]
[394346399,1763478645244,-356.24468002,0.00040301,120]
[394346400,1763478645254,-667.01589642,0.00040301,120]
[394346401,1763478645265,-257.425,0.00040301,120]
[394346402,1763478645275,-604.0,0.00040301,120]
[394346403,1763478645286,-10122.71627477,0.00040301,120]
[394346404,1763478645296,-223803.26835261,0.00040301,120]
[394346405,1763478645308,-4203.28050959,0.00040301,120]
[394346406,1763478645735,-699.7030126,0.00022072,2]
[394346407,1763478645745,-3696.05563937,0.00024849,2]
[394346408,1763478645756,-916.1152,0.00024849,2]
[394346409,1763478645769,-2913.11972553,0.00024849,2]
[394346410,1763478645778,-2286.88027447,0.00040301,120]
[394346411,1763478646098,-44231.76340652,0.00040301,120]
[394346433,1763478678485,1420.06,0.00022,30]
[394346434,1763478715712,-350032.36579573,0.00041633,30]
[394346435,1763478715767,-1000.0,0.00041633,120]
[394346436,1763478715822,-41400.0,0.00041633,48]
[394346437,1763478715877,-200000.0,0.00041633,30]
[394346438,1763478715938,-100000.0,0.00041633,30]
[394346439,1763478715991,-53000.0,0.00041633,120]
[394346440,1763478716045,-75952.84595524,0.00041633,120]
[394346441,1763478716097,-5000.0,0.00041633,30]
[394346442,1763478716147,-151.0,0.00041633,120]
[394346443,1763478716201,-156.587,0.00041633,120]
[394346444,1763478716257,-162.380719,0.00041633,120]
[394346445,1763478716305,-168.3888056,0.00041633,120]
[394346446,1763478716356,-174.61919141,0.00041633,120]
[394346447,1763478716404,-174.61919141,0.00041633,120]
[394346448,1763478716460,-300.0,0.00041633,120]
[394346449,1763478716515,-200.0,0.00041633,30]
[394346450,1763478716572,-300.0,0.00041633,120]
[394346451,1763478716623,-207.4,0.00041633,30]
[394346452,1763478716672,-250.0,0.00041633,120]
[394346453,1763478716727,-250.0,0.00041633,120]
[394346454,1763478716783,-250.0,0.00041633,120]
[394346455,1763478716840,-500.0,0.00041633,120]
[394346456,1763478716892,-250.0,0.00041633,120]
[394346457,1763478716940,-500.0,0.00041633,120]
[394346458,1763478716991,-250.0,0.00041633,120]
[394346459,1763478717039,-151.0,0.00041633,120]
[394346460,1763478717090,-151.0,0.00041633,120]
[394346461,1763478717138,-2500.0,0.00041633,120]
[394346462,1763478717186,-2592.5,0.00041633,120]
[394346463,1763478717237,-2688.4225,0.00041633,120]
[394346464,1763478717286,-2787.8941325,0.00041633,120]
[394346465,1763478717335,-2891.0462154,0.00041633,120]
[394346466,1763478717383,-2998.01492537,0.00041633,120]
[394346467,1763478717431,-3108.94147761,0.00041633,120]
[394346468,1763478717479,-3223.97231228,0.00041633,120]
[394346469,1763478717529,-3343.25928784,0.00041633,120]
[394346470,1763478717575,-3466.95988149,0.00041633,120]
[394346471,1763478717620,-3595.2373971,0.00041633,120]
[394346472,1763478726723,220.27948894,0.00041633,120]
[394346473,1763478736103,500.0,0.00041633,120]
[394346474,1763478737314,500.0,0.00041633,120]
[394346475,1763478737967,500.0,0.00041633,120]
[394346476,1763478739316,200.0,0.00041633,30]
[394346477,1763478740023,200.0,0.00041633,30]
[394346478,1763478752177,258.99350416,0.00041633,120]
[394346479,1763478753717,300.0,0.00041633,120]
[394346480,1763478754343,300.0,0.00041633,120]
[394346481,1763478755704,176.29665512,0.00041633,120]
[394346482,1763478759976,500.0,0.00041633,120]
[394346483,1763478760836,500.0,0.00041633,120]
[394346484,1763478770967,-1035.097,0.00034139,38]
[394346485,1763478770997,-500.0,0.00038008,30]
[394346486,1763478771025,-500.0,0.00038045,30]
[394346487,1763478771053,-500.0,0.0003812,30]
[394346488,1763478771084,-500.0,0.00038142,30]
[394346489,1763478771116,-500.0,0.00038346,30]
[394346490,1763478771146,-500.0,0.0003862,30]
[394346491,1763478771173,-500.0,0.00038711,30]
[394346492,1763478771200,-500.0,0.00038731,30]
[394346493,1763478771226,-198.6816,0.000388,30]
[394346494,1763478771480,-500.0,0.00039117,30]
[394346495,1763478771509,-500.0,0.00039212,30]
[394346496,1763478771539,-500.0,0.000396,30]
[394346497,1763478771571,-500.0,0.00039843,30]
[394346498,1763478771600,-579.77765898,0.000403,31]
[394346499,1763478771634,-490.82611786,0.00040301,30]
[394346500,1763478771666,-1450231.3386493,0.00040301,120]
[394346501,1763478771698,-151.0,0.00040301,120]
[394346502,1763478771739,-156.98453,0.00040301,120]
[394346503,1763478771768,-151.0,0.00040301,120]
[394346504,1763478771796,-151.0,0.00040301,120]
[394346505,1763478771824,-151.0,0.00040301,120]
[394346506,1763478771851,-160.541637,0.00040301,120]
[394346507,1763478771879,-151.0,0.00040301,120]
[394346508,1763478771908,-151.0,0.00040301,120]
[394346509,1763478771936,-151.0,0.00040301,120]
[394346510,1763478771964,-151.0,0.00040301,120]
[394346511,1763478771993,-151.0,0.00040301,120]
[394346512,1763478772022,-151.0,0.00040301,120]
[394346513,1763478772052,-228.970783,0.00040301,120]
[394346514,1763478772082,-208.40371,0.00040301,120]
[394346515,1763478772118,-151.0,0.00040301,120]
[394346516,1763478772147,-151.0,0.00040301,120]
[394346517,1763478772173,-166.828685,0.00040301,120]
[394346518,1763478772201,-151.0,0.00040301,120]
[394346519,1763478772228,-151.0,0.00040301,120]
[394346520,1763478772254,-151.0,0.00040301,120]
[394346521,1763478772281,-151.0,0.00040301,120]
[394346522,1763478772308,-151.0,0.00040301,120]
[394346523,1763478772340,-168.061494,0.00040301,120]
[394346524,1763478772372,-151.0,0.00040301,120]
[394346525,1763478772401,-168.061494,0.00040301,120]
[394346526,1763478772429,-168.061494,0.00040301,120]
[394346527,1763478772457,-168.061494,0.00040301,120]
[394346528,1763478772484,-151.0,0.00040301,60]
[394346529,1763478772512,-151.0,0.00040301,120]
[394346530,1763478772539,-289.39501,0.00040301,120]
[394346531,1763478772567,-151.0,0.00040301,120]
[394346532,1763478772594,-151.0,0.00040301,120]
[394346533,1763478772625,-151.0,0.00040301,120]
[394346534,1763478772653,-151.0,0.00040301,120]
[394346535,1763478772682,-151.0,0.00040301,120]
[394346536,1763478772711,-151.583804,0.00040301,120]
[394346537,1763478772739,-151.0,0.00040301,120]
[394346538,1763478772766,-151.0,0.00040301,120]
[394346539,1763478772794,-151.0,0.00040301,120]
[394346540,1763478772822,-151.0,0.00040301,120]
[394346541,1763478772850,-151.0,0.00040301,120]
[394346542,1763478772881,-151.0,0.00040301,120]
[394346543,1763478772908,-151.0,0.00040301,120]
[394346544,1763478772936,-151.0,0.00040301,120]
[394346545,1763478772963,-151.0,0.00040301,120]
[394346546,1763478772990,-151.0,0.00040301,120]
[394346547,1763478773016,-156.299462,0.00040301,120]
[394346548,1763478773044,-151.0,0.00040301,120]
[394346549,1763478773073,-151.0,0.00040301,120]
[394346550,1763478773103,-151.0,0.00040301,120]
[394346551,1763478773133,-151.000003,0.00040301,120]
[394346552,1763478773159,-238.13294,0.00040301,60]
[394346553,1763478773188,-160.639723,0.00040301,120]
[394346554,1763478773216,-151.0,0.00040301,120]
[394346555,1763478773244,-151.0,0.00040301,120]
[394346556,1763478773271,-151.0,0.00040301,120]
[394346557,1763478773300,-690.233806,0.00040301,120]
[394346558,1763478773328,-151.0,0.00040301,120]
[394346559,1763478773355,-151.0,0.00040301,120]
[394346560,1763478773386,-690.233806,0.00040301,120]
[394346561,1763478773415,-690.233806,0.00040301,120]
[394346562,1763478773443,-690.233806,0.00040301,120]
[394346563,1763478773471,-151.0,0.00040301,120]
[394346564,1763478773500,-182.909283,0.00040301,120]
[394346565,1763478773527,-152.646818,0.00040301,120]
[394346566,1763478773556,-328.264286,0.00040301,120]
[394346567,1763478773587,-272.913538,0.00040301,120]
[394346568,1763478773614,-328.264286,0.00040301,120]
[394346569,1763478773642,-328.264286,0.00040301,120]
[394346570,1763478773670,-328.264286,0.00040301,120]
[394346571,1763478773699,-151.0,0.00040301,120]
[394346572,1763478773729,-199.866648,0.00040301,120]
[394346573,1763478773757,-199.866648,0.00040301,120]
[394346574,1763478773785,-199.866648,0.00040301,120]
[394346575,1763478773818,-199.866648,0.00040301,120]
[394346576,1763478773848,-151.0,0.00040301,120]
[394346577,1763478773879,-157.748025,0.00040301,120]
[394346578,1763478773907,-603.271922,0.00040301,90]
[394346579,1763478773935,-603.271922,0.00040301,90]
[394346580,1763478773964,-603.271922,0.00040301,90]
[394346581,1763478773993,-603.271922,0.00040301,90]
[394346582,1763478774021,-156.55857,0.00040301,120]
[394346583,1763478774050,-151.0,0.00040301,120]
[394346584,1763478774080,-194.038784,0.00040301,120]
[394346585,1763478774114,-194.038784,0.00040301,120]
[394346586,1763478774141,-151.0,0.00040301,120]
[394346587,1763478774171,-194.038784,0.00040301,120]
[394346588,1763478774200,-151.0,0.00040301,120]
[394346589,1763478774228,-194.038784,0.00040301,120]
[394346590,1763478774256,-247.33734,0.00040301,120]
[394346591,1763478774283,-151.0,0.00040301,120]
[394346592,1763478774311,-151.0,0.00040301,120]
[394346593,1763478774340,-151.0,0.00040301,120]
[394346594,1763478774369,-151.0,0.00040301,120]
[394346595,1763478774397,-151.0,0.00040301,120]
[394346596,1763478774425,-223.655964,0.00040301,120]
[394346597,1763478774452,-151.0,0.00040301,120]
[394346598,1763478774616,-151.0,0.00040301,120]
[394346599,1763478774643,-151.0,0.00040301,120]
[394346600,1763478774670,-151.0,0.00040301,120]
[394346601,1763478774696,-151.0,0.00040301,120]
[394346602,1763478774722,-151.0,0.00040301,120]
[394346603,1763478774748,-151.0,0.00040301,120]
[394346604,1763478774777,-151.0,0.00040301,120]
[394346605,1763478774804,-212.498357,0.00040301,120]